Cogmind - Beta 15 *** ADVENTURER MODE // 2025.09.18 @ 14:07:54 Player: Gen Result: Self-destructed Performance ------------- Evolutions (2) 1000 Regions Visited (3) 600 Robots Destroyed (11) 55 Value Destroyed (235) 235 Prototype IDs (0) 0 Alien Tech Used (0) 0 Bonus (0) 0 TOTAL SCORE: 1890 Bonus ------- None Cogmind --------- Core Integrity 363/550 Matter 300/300 Energy 100/100 System Corruption 0% Temperature Cool (0) Movement Core (1450) Ox28 Location -8/Materials Parts ------- > --- POWER (1) -------- (None) > --- PROPULSION (4) --- (None) > --- UTILITY (4) ------ Huge Storage Unit Structural Scanner > --- WEAPON (2) ------- Subdweller Machine Gun Mining Claw > --- INVENTORY (25) --- Ion Engine Large Battery (200) EM Pulse Gun Small Laser Datajack Peak State ------------ > --- POWER ------------ Ion Engine > --- PROPULSION ------- Aluminum Leg Aluminum Leg > --- UTILITY ---------- Huge Storage Unit Structural Scanner Scrap Shield > --- WEAPON ----------- EM Shotgun Mining Laser > --- INVENTORY -------- Ion Engine Large Battery EM Pulse Gun Small Laser Light Assault Rifle Subdweller Machine Gun Datajack Mining Claw [Rating: 12] Favorites ----------- Power Ion Engine Engine Ion Engine Propulsion Aluminum Leg Leg Aluminum Leg Utility Structural Scanner Device Structural Scanner Storage Huge Storage Unit Protection Scrap Shield Weapon EM Pulse Gun Energy Gun EM Pulse Gun Ballistic Gun Light Assault Rifle Special Weapon Mining Laser Slashing Weapon Mining Claw Build | -11 -10 -10 -8 ------- Run | Yrd Mat Sub Mat Slots Evolved 4 | . . . 4 Power . | . . . . Propulsion 2 | . . . 2 Utility 2 | . . . 2 Weapon . | . . . . Parts Attached 14 | 6 5 2 1 Power 1 | 1 . . . Engine 1 | 1 . . . Core . | . . . . Reactor . | . . . . Propulsion 2 | 2 . . . Treads . | . . . . Leg 2 | 2 . . . Wheel . | . . . . Hover . | . . . . Flight . | . . . . Utility 4 | 1 2 . 1 Device 1 | . 1 . . Storage 2 | 1 1 . . Processor . | . . . . Hackware . | . . . . Protection 1 | . . . 1 Artifact . | . . . . Weapon 7 | 2 3 2 . Energy Gun 3 | 1 2 . . Energy Cannon . | . . . . Ballistic Gun 2 | 1 . 1 . Ballistic Cannon . | . . . . Launcher . | . . . . Special Weapon 1 | . . 1 . Impact Weapon . | . . . . Slashing Weapon 1 | . 1 . . Piercing Weapon . | . . . . Special Melee Weapon . | . . . . Unidentified Prototypes . | . . . . Parts Lost 7 | . . . 7 Power 1 | . . . 1 Propulsion 2 | . . . 2 Utility 1 | . . . 1 Weapon 3 | . . . 3 Highest Loss Streak 7 | . . . 7 To Critical Strikes . | . . . . Average Backups 6 | 1 5 8 7 Power . | . 1 1 1 Propulsion . | . . . . Utility 1 | . . 1 1 Weapon 3 | . 3 4 4 Tool/Special . | . . . . Unused Backups 3 | . . . 3 Power 1 | . . . 1 Propulsion . | . . . . Utility 1 | . . . 1 Weapon . | . . . . Tool/Special 1 | . . . 1 Average Slot Usage (%) 95 | . 99 100 66 Engine 13 | . 14 14 8 Leg 26 | . 28 28 15 Device 13 | . 13 14 9 Storage 13 | . 14 14 9 Energy Gun 20 | . 23 21 7 Ballistic Gun 1 | . 1 4 2 Special Weapon 1 | . . 2 7 Slashing Weapon 2 | . 3 . . Peak Build Rating 12 | 6 8 9 12 Average Rating 8 | 3 7 8 10 On Entrance 5 | . 6 8 8 Naked Turns . | . . . . Heaviest Build 108 | 12 91 92 108 Greatest Support 20 | 20 20 20 20 Greatest Overweight (x) 28 | 3 4 4 28 Average Overweight (x) 2 | . 2 4 5 Largest Inventory Capacity 25 | 8 25 25 25 Average Capacity 22 | 7 22 25 25 Most Carried 11 | 4 7 11 10 Average Carried 6 | 1 5 9 7 Final Capacity 25 | 8 25 25 25 Final Carried 10 | 2 7 10 5 Class Distribution -------------------- 100% | Mutant Dominant Class ---------------- Mutant | -10/Materials Mutant | -10/Subcaves Mutant | -8/Materials Resources | -11 -10 -10 -8 ----------- Run | Yrd Mat Sub Mat Matter Collected 389 | 198 63 40 88 Remotely . | . . . . Salvage Created 286 | . 108 . 178 Parts 24 | . 11 . 13 Haulers Intercepted . | . . . . Recyclers Shooed . | . . . . Parts Field Recycled . | . . . . Retrieved Matter . | . . . . Parts Self-Destructed 3 | . . 3 . Prevented . | . . . . Kills | -11 -10 -10 -8 ------- Run | Yrd Mat Sub Mat Combat Hostiles Destroyed 7 | . 2 . 5 Melee 2 | . 2 . . Guns 5 | . . . 5 Classes Destroyed 4 | . 2 . 2 Watcher 4 | . 3 . 1 Swarmer 5 | . 2 . 3 Grunt 1 | . . . 1 Sentry 1 | . . . 1 Best Kill Streak 4 | . 2 . 4 Combat Bots Only 3 | . 2 . 3 Max Kills in Single Turn 1 | . 1 . 1 Gunslinging . | . . . . Exploded . | . . . . Melee 1 | . 1 . . Uniques/NPCs Destroyed . | . . . . Combat | -11 -10 -10 -8 -------- Run | Yrd Mat Sub Mat Hostile Shots Fired 138 | . 32 8 98 Missed 30 | . 9 2 19 Hits 108 | . 23 6 79 Projectile 108 | . 23 6 79 Critical Strikes 5 | . . . 5 Damage Taken 1073 | . 161 100 812 Core 229 | . 42 . 187 Absorbed by Shields . | . . . . Ignored by Resistances 318 | . 51 28 239 Regen/Repaired (Parts) 37 | . 37 . . Core Remaining (%) 91 | 100 . 83 . Volleys Fired 55 | . 11 13 31 Largest 2 | . 1 2 2 Hottest 120 | . 40 85 120 Shots Fired 68 | . 11 20 37 Gun 67 | . 11 20 36 Cannon . | . . . . Launcher . | . . . . Special 1 | . . . 1 Kinetic 27 | . 6 5 16 Thermal 1 | . . . 1 Explosive . | . . . . Electromagnetic 40 | . 5 15 20 Robot Hit Streak 28 | . 2 23 28 Robot Miss Streak 6 | . 2 . 6 Penetration Max . | . . . . Secondary Targets . | . . . . Shots Hit Robots 60 | . 7 20 33 Core Hits 22 | . 5 2 15 Critical Kills . | . . . . Critical Parts Destroyed . | . . . . Critical Strikes . | . . . . Melee Attacks 5 | . 5 . . Impact . | . . . . Slashing 5 | . 5 . . Piercing . | . . . . Sneak Attacks . | . . . . Combat Hostiles . | . . . . Follow-up Attacks . | . . . . Damage Inflicted 853 | . 171 222 460 Guns 705 | . 84 222 399 Cannons . | . . . . Explosions 101 | . 40 . 61 Melee 47 | . 47 . . Ramming . | . . . . Kinetic 245 | . 18 103 124 Thermal 101 | . 40 . 61 Explosive . | . . . . Electromagnetic 460 | . 66 119 275 Impact . | . . . . Slashing 47 | . 47 . . Piercing . | . . . . Highest Corruption . | . . . . Average Corruption . | . . . . Corruption Purged . | . . . . Corruption Blocked . | . . . . Overload Shots . | . . . . Overflow Damage 26 | . . . 26 Projectiles . | . . . . Explosions 26 | . . . 26 Melee . | . . . . Knockbacks . | . . . . Impact . | . . . . Kinetic . | . . . . Secondary . | . . . . Self-Inflicted Damage 18 | . 18 . . Shots 1 | . 1 . . Rammed . | . . . . Targets Rammed . | . . . . Kicked . | . . . . Crushed . | . . . . Highest Temperature 43 | . 12 . 43 Average Temperature 15 | . 12 . 15 Received Heat Transfer 630 | . . 18 612 Siege Activations . | . . . . Martial Activations . | . . . . Shielding Activations . | . . . . Robots Disrupted . | . . . . Combat Hostiles . | . . . . Robots Corrupted . | . . . . Combat Hostiles . | . . . . Parts Fried 1 | . . . 1 Impact Corruptions . | . . . . Robots Melted . | . . . . Combat Hostiles . | . . . . Parts Melted . | . . . . Heat Transferred 50 | . . . 50 Parts Sabotaged . | . . . . Parts Stolen . | . . . . Parts Stripped . | . . . . Power Chain Reactions 2 | . 1 . 1 Alert | -11 -10 -10 -8 ------- Run | Yrd Mat Sub Mat Maximum Alert Level . | . . . . Low Security (%) 100 | 100 100 . 100 Level 1 . | . . . . Level 2 . | . . . . Level 3 . | . . . . Level 4 . | . . . . Level 5 . | . . . . High Security . | . . . . Max Security . | . . . . Peak Influence 89 | . 50 . 89 Initial . | . . . . Average 7 | . 2 . 36 Influence Increases 230 | . 90 . 140 Destroy 0b10 Robot/C 140 | . 40 . 100 Destroy 0b10 Robot/NC 20 | . 15 . 5 Destroy Leader 38 | . 16 . 22 Successful Hack 6 | . 6 . . Disable Machine 18 | . 9 . 9 Destroy Structure 8 | . 4 . 4 Influence Decreases 230 | . 90 . 140 Time Decay 190 | . 90 . 100 Lost Part 40 | . . . 40 Squads Dispatched . | . . . . Investigation . | . . . . Extermination . | . . . . Reinforcement . | . . . . Assault . | . . . . Garrison . | . . . . Intercept . | . . . . Searches Triggered . | . . . . Construction Impeded . | . . . . Haulers Reinforced . | . . . . Active Scanning Responses . | . . . . Cargo Convoy Interrupts . | . . . . Stealth | -11 -10 -10 -8 --------- Run | Yrd Mat Sub Mat Distress Signals . | . . . . Communications Jammed . | . . . . Distress Signals . | . . . . Times Spotted 29 | . 7 8 14 Peak Tracking Total 5 | . 4 3 5 Tactical Retreats . | . . . . Traps | -11 -10 -10 -8 ------- Run | Yrd Mat Sub Mat Traps Triggered . | . . . . Indirectly . | . . . . Trap Hack Attempts . | . . . . Triggered . | . . . . Disarmed . | . . . . Reprogrammed . | . . . . Reused . | . . . . Traps Extracted . | . . . . Installed . | . . . . Triggered . | . . . . Machines | -11 -10 -10 -8 ---------- Run | Yrd Mat Sub Mat Machines Disabled 2 | . 1 . 1 Max in Single Turn 1 | . 1 . 1 Machines Repaired . | . . . . Machines Dismantled . | . . . . Machines Sabotaged . | . . . . Overloaded Fab Kills . | . . . . Hacking | -11 -10 -10 -8 --------- Run | Yrd Mat Sub Mat Machines Accessed 3 | . 3 . . Terminals 2 | . 2 . . Fabricators . | . . . . Repair Stations 1 | . 1 . . Recycling Units . | . . . . Scanalyzers . | . . . . Garrison Access . | . . . . Total Hacks 7 | . 7 . . Successful 6 | . 6 . . Failed 1 | . 1 . . Catastrophic . | . . . . Database Lockouts . | . . . . Manual . | . . . . Terminals 5 | . 5 . . Fabricators . | . . . . Repair Stations 2 | . 2 . . Recycling Units . | . . . . Scanalyzers . | . . . . Garrison Access . | . . . . Terminal Hacks 4 | . 4 . . Emergency Access Points 1 | . 1 . . Locate Traps 1 | . 1 . . Hauler Manifests 1 | . 1 . . Zone Layout 1 | . 1 . . Fabricator Hacks . | . . . . Repair Station Hacks 2 | . 2 . . Scan Component 1 | . 1 . . Repair 1 | . 1 . . Recycling Unit Hacks . | . . . . Scanalyzer . | . . . . Garrison Access Hacks . | . . . . Unauthorized Hacks . | . . . . Terminals . | . . . . Fabricators . | . . . . Repair Stations . | . . . . Recycling Units . | . . . . Scanalyzers . | . . . . Garrison Access . | . . . . Data Cores Recovered . | . . . . Used . | . . . . Hacking Detections 1 | . 1 . . Full Trace Events . | . . . . Feedback Events . | . . . . Feedback Blocked . | . . . . Robot Schematics Acquired . | . . . . Robots Built . | . . . . Authchips . | . . . . Time . | . . . . Total Robot Build Rating . | . . . . Part Schematics Acquired . | . . . . Parts Built . | . . . . Authchips . | . . . . Time . | . . . . Total Part Build Rating . | . . . . Parts Repaired 1 | . 1 . . Time 26 | . 26 . . Parts Recycled . | . . . . Recycled Matter . | . . . . Retrieved Matter . | . . . . Retrieved Components . | . . . . Parts Scanalyzed . | . . . . Part Schematics Acquired . | . . . . Parts Damaged . | . . . . Bothacking | -11 -10 -10 -8 ------------ Run | Yrd Mat Sub Mat Used RIF Installer . | . . . . Robots Hacked . | . . . . Non-combat . | . . . . Combat . | . . . . Robot Hacks Applied . | . . . . Relay Couplers Released . | . . . . Fabnet Peak Effective % . | . . . . Robots Rewired . | . . . . Allies Hacked . | . . . . Hacks Repelled . | . . . . Allies | -11 -10 -10 -8 -------- Run | Yrd Mat Sub Mat Total Allies . | . . . . Largest Group . | . . . . Highest-Rated Group . | . . . . Highest-Rated Ally . | . . . . Total Orders . | . . . . Ally Attacks . | . . . . Total Damage . | . . . . Kills . | . . . . Allies Corrupted . | . . . . Allies Melted . | . . . . Intel | -11 -10 -10 -8 ------- Run | Yrd Mat Sub Mat Active Infowar (turns) 2198 | . 1621 275 302 Structural 2198 | . 1621 275 302 Robot Analysis Total . | . . . . Derelict Logs Recovered 1 | . . 1 . Drone Launches . | . . . . Drone Recoveries . | . . . . Exploration | -11 -10 -10 -8 ------------- Run | Yrd Mat Sub Mat Turns Passed 2282 | 57 1648 275 302 Spaces Moved 657 | 31 520 60 46 Core 14 | 13 . . 1 Treads . | . . . . Legs 643 | 18 520 60 45 Wheels . | . . . . Hover . | . . . . Flight . | . . . . Fastest Speed 50 | 50 120 400 470 Average Speed 317 | 124 304 400 491 Slowest Speed 1450 | 200 400 400 1450 Overloaded Moves . | . . . . Propulsion Burnouts . | . . . . Robots Hopped . | . . . . Potential Cave-ins . | . . . . Cave-ins Triggered . | . . . . Exploration Rate (%) 19 | 4 59 7 8 Regions Visited 3 Branch Regions 1 Pre-discovered Areas 1 | . . 1 . Known Exits Taken . | . . . . Unknown Exits Taken 3 | 1 1 1 . Scrap Searched . | . . . . Spaces Dug . | . . . . Terrain Destroyed 6 | . 3 . 3 Melee . | . . . . Projectile 1 | . . . 1 AOE 5 | . 3 . 2 Terrain Rammed . | . . . . Walls Destroyed . | . . . . Machines Disabled . | . . . . Actions | -11 -10 -10 -8 --------- Run | Yrd Mat Sub Mat Total 777 | 49 566 77 85 Wait 23 | 5 16 . 2 Move 654 | 30 519 59 46 Hop . | . . . . Pick Up 18 | 8 8 2 . Fast Attach . | . . . . Attach 13 | 6 2 1 4 Detach 2 | . 1 1 . Swap 6 | . 3 1 2 Drop 1 | . 1 . . Fire 55 | . 11 13 31 Melee 5 | . 5 . . Ram . | . . . . Kick . | . . . . Crush . | . . . . Escape Stasis . | . . . . Rewire . | . . . . Trap . | . . . . Miscellaneous . | . . . . Route ------- -11/Scrapyard -10/Materials (discovered 4 exits: [*Mat x2] / [*Min] / [*Sub]) -10/Subcaves -8/Materials History --------- Turn | Location | Event 19 | -11/Scrapyard | Discovered new exit (range 16) 58 | -11/Scrapyard | Entered Materials 308 | -10/Materials | Discovered new exit (range 9) 313 | -10/Materials | Build established: Mutant 437 | -10/Materials | Discovered new exit (range 7) 715 | -10/Materials | Discovered new exit (range 11) 1215 | -10/Materials | Repaired Mining Claw 1682 | -10/Materials | Discovered new exit (range 6) 1706 | -10/Materials | Entered Subcaves 1726 | -10/Subcaves | Learned location of Zion (-6) 1895 | -10/Subcaves | Ambushed by swarm of Subdwellers 1920 | -10/Subcaves | Discovered new exit (range 13) 1981 | -10/Subcaves | Entered Materials 1981 | -8/Materials | Evolved 4 slots: Propulsion x2, Utility x2 2283 | -8/Materials | Self-destructed Last Messages --------------- 02237_ Scrap Shield destroyed. 02239_ Critical hit (Burn: +37). 02246_ Aluminum Leg destroyed. 02247_ G-47 Trooper destroyed. 02248_ R-06 Scavenger collects Aluminum Leg. 02256_ K-01 Serf collects debris. 02261_ EM Shotgun destroyed. 02262_ Ion Engine destroyed. 02263_ R-06 Scavenger collects Lgt. Nuclear Core. 02264_ K-01 Serf collects debris. 02265_ Lgt. Assault Rifle destroyed. 02269_ Acquired 23 matter. 02269_ G-47 Trooper IFF system glitched. 02270_ K-01 Serf collects debris. 02277_ M-13 Machinist repairs G-47 Trooper. 02279_ M-13 Machinist repairs G-47 Trooper Lgt. Nuclear Core. 02279_ Critical hit (Burn: +37). 02281_ G-47 Trooper misfires. Map ----- +----------------------------------------------------+ | ?????????????????????????????????????????????????? | | ?????????????????????????????????????????????????? | | ?????????????????????????????????????????????????? | | ?????????????????????????????????????????????????? | | ?????????????????????????????????????????????????? | | ?????????????????????????????????????????????????? | | ?????????????????????????????????????????????????? | | ?????????????????????????????????????????????????? | | ?????????????????????????????????????????????????? | | ?????????????????????????????????????????????????? | | ?????????????????????????????????????????????????? | | ?????????????????????????????????????????????????? | | ?????????????????????## ?????????????????????????? | | ?????????????????????## ?????????????????????????? | | ?????????????????????## ????????? # ?????????????? | | ?????????????????????## ????????? # ?????????????? | | ?????????????????????## ????????? # ?????????????? | | ?????????????????????## ???????? # ?????????????? | | ????????????????????### #### ?? # ?????????????? | | ????????????????????### #### !????????????????? | | ????????????????????## ###w##????????????????? | | ????????????????????## a ????????????????? | | ???????????????#######! ???????????????????? | | ???????????????####### gg ????????????????????? | | ??????????????? gm !# ????????????????????? | | ?????????????????????##k=@## ????????????????????? | | ?????????????????????## [## ????????????????????? | | ?????????????????????## ###????????????????????? | | ???????????############ ############???????????? | | ???????????############w ############???????????? | | ???????????## # # [ ##???????????? | | ???????????## # # ##???????????? | | ???????????## # # """ """ ##???????????? | | ???????????## #% # "" """ ##???????????? | | ???????????## # # "" """ ##???????????? | | ???????????## """ + %+ ##???????????? | | ???????????## """ # # ##???????????? | | ???????????## """ # # ##???????????? | | ???????????############ u#########+##########???? | | ???????????? ######## ######## ##########???? | | ????????????????????## + """ ##???? | | ????????????????????## " # """ ##???? | | ????????????????????## # """ ##???? | | ??????????????????? ####### + ##???? | | ???????????????????############### # ##???? | | ???????????????????## ??? # # ##???? | | ???????????????????????????????? # #########???? | | ???????????????????????????????? #############???? | | ???????????????????????????????? ######??????????? | | ?????????????????????????????????????????????????? | +----------------------------------------------------+ Best States ------------- Heat Dissipation 31 Energy Generation 10 Energy Capacity 250 Matter Stores 300 Matter Capacity 300 Sight Range 16 Terrain Scan Density 10 Armor Coverage 800 Resistance: KI 20 Resistance: TH 20 Resistance: EX 20 Resistance: EM 20 Resistance: I 20 Resistance: S 20 Resistance: P 20 Evasion (%) 55 Offensive Hacking 10 Item Schematics ----------------- None Robot Schematics ------------------ None Fabricated ------------ Nothing Repaired ---------- Mining Claw | 7% | -10/Materials Alien Tech Used ----------------- None Achievements -------------- None Challenges ------------ None Game ------ Seed NetworkOpticalTendrils Manual? 0 Play Time 00:14:42 Cumulative 2.4 hours Start 2025.09.18 @ 13:52:29 End 2025.09.18 @ 14:07:54 Sessions 1 Manual Loads 0 Difficulty Adventurer Special Mode None Game No. 5 Rogue 0 Adventurer 5 Explorer 0 Win Type - Total 0 Types 0/0/0/0/0/0/0/0/0/0 Lore% 2 Gallery% 7 Achievement% 8 Wizard Run 0 Options --------- Layout 1 ASCII 0 Keyboard 0 Movement Mouse Keybinds 0 Fullscreen 2 Font 24/Smallcaps Map View 25x17 Zoom Use 96% Tactical HUD 1 Map Filters NONE Filters NONE Steam 1 RUN: 1212ec3c-41ca-4417-80cb-0cc9ca692893